[Event "January 9 Late 2024"]
[Site "https://www.chess.com"]
[Date "2024.01.09"]
[Round "1"]
[White "Sadovsky, Artem"]
[Black "Bluebaum, Matthias"]
[Result "0-1"]
[Board "13"]
[TimeControl "180+1"]
[WhiteFideId "4155840"]
[BlackFideId "24651516"]
[WhiteElo "2546"]
[BlackElo "3076"]
[WhiteTeam "FID"]
[BlackTeam "GER"]
[WhiteClock "0:00:00"]
[BlackClock "0:00:22"]

1. Nf3 {[%clk 0:03:00]}  d5 {[%clk 0:02:59]} 2. e3 {[%clk 0:03:00]}  e6 {[%clk 0:02:59]} 3. c4 {[%clk 0:03:00]}  Nf6 {[%clk 0:02:58]} 4. Be2 {[%clk 0:03:00]}  Bd6 {[%clk 0:02:59]} 5. O-O {[%clk 0:03:01]}  O-O {[%clk 0:02:59]} 6. b3 {[%clk 0:03:00]}  c5 {[%clk 0:02:57]} 7. Bb2 {[%clk 0:03:01]}  Nc6 {[%clk 0:02:57]} 8. cxd5 {[%clk 0:03:01]}  exd5 {[%clk 0:02:58]} 9. d4 {[%clk 0:03:01]}  cxd4 {[%clk 0:02:58]} 10. Nxd4 {[%clk 0:03:02]}  Bc7 {[%clk 0:02:59]} 11. Nd2 {[%clk 0:02:57]}  Nxd4 {[%clk 0:02:39]} 12. Bxd4 {[%clk 0:02:57]}  Qd6 {[%clk 0:02:39]} 13. Nf3 {[%clk 0:02:57]}  Bg4 {[%clk 0:02:39]} 14. Be5 {[%clk 0:02:57]}  Qe7 {[%clk 0:02:40]} 15. Bxc7 {[%clk 0:02:55]}  Qxc7 {[%clk 0:02:41]} 16. Rc1 {[%clk 0:02:53]}  Qa5 {[%clk 0:02:40]} 17. Nd4 {[%clk 0:02:35]}  Bxe2 {[%clk 0:02:35]} 18. Qxe2 {[%clk 0:02:36]}  Rac8 {[%clk 0:02:35]} 19. a4 {[%clk 0:02:27]}  a6 {[%clk 0:02:31]} 20. Qf3 {[%clk 0:02:23]}  Qb4 {[%clk 0:02:28]} 21. Qf5 {[%clk 0:02:21]}  Rxc1 {[%clk 0:02:05]} 22. Rxc1 {[%clk 0:02:22]}  Ne4 {[%clk 0:02:05]} 23. g3 {[%clk 0:01:57]}  g6 {[%clk 0:02:00]} 24. Qxd5 {[%clk 0:01:45]}  Nxf2 {[%clk 0:01:55]} 25. Rf1 {[%clk 0:01:18]}  Ng4 {[%clk 0:01:54]} 26. Qg5 {[%clk 0:01:08]}  f5 {[%clk 0:01:06]} 27. Nxf5 {[%clk 0:01:07]}  Nf6 {[%clk 0:01:06]} 28. Nd4 {[%clk 0:00:52]}  Qe7 {[%clk 0:01:05]} 29. Rf3 {[%clk 0:00:44]}  Rf7 {[%clk 0:00:50]} 30. a5 {[%clk 0:00:43]}  Ne4 {[%clk 0:00:46]} 31. Qd5 {[%clk 0:00:38]}  Nf6 {[%clk 0:00:29]} 32. Qe6 {[%clk 0:00:30]}  Qxe6 {[%clk 0:00:21]} 33. Nxe6 {[%clk 0:00:31]}  Ne4 {[%clk 0:00:22]} 34. Rxf7 {[%clk 0:00:30]}  Kxf7 {[%clk 0:00:23]} 35. Nd8+ {[%clk 0:00:29]}  Ke7 {[%clk 0:00:23]} 36. Nxb7 {[%clk 0:00:30]}  Kd7 {[%clk 0:00:24]} 37. b4 {[%clk 0:00:29]}  Kc6 {[%clk 0:00:24]} 38. Nc5 {[%clk 0:00:15]}  Nxc5 {[%clk 0:00:24]} 39. bxc5 {[%clk 0:00:16]}  Kxc5 {[%clk 0:00:25]} 40. Kf2 {[%clk 0:00:13]}  Kb5 {[%clk 0:00:26]} 41. Kf3 {[%clk 0:00:05]}  Kxa5 {[%clk 0:00:26]} 42. Ke4 {[%clk 0:00:06]}  Kb6 {[%clk 0:00:25]} 43. Kd5 {[%clk 0:00:06]}  a5 {[%clk 0:00:21]} 44. g4 {[%clk 0:00:06]}  a4 {[%clk 0:00:18]} 45. Kc4 {[%clk 0:00:06]}  Kc6 {[%clk 0:00:18]} 46. Kb4 {[%clk 0:00:05]}  Kd5 {[%clk 0:00:19]} 47. Kxa4 {[%clk 0:00:05]}  Ke4 {[%clk 0:00:20]} 48. Kb5 {[%clk 0:00:05]}  Kxe3 {[%clk 0:00:20]} 49. Kc5 {[%clk 0:00:04]}  Kf4 {[%clk 0:00:21]} 50. h3 {[%clk 0:00:01]}  Kg3 {[%clk 0:00:21]} 51. Kd5 {[%clk 0:00:00]}  Kxh3 {[%clk 0:00:22]} 0-1

[Event "January 9 Late 2024"]
[Site "https://www.chess.com"]
[Date "2024.01.09"]
[Round "1"]
[White "Oparin, Grigoriy"]
[Black "Smiech, Sara"]
[Result "1-0"]
[Board "14"]
[TimeControl "180+1"]
[WhiteFideId "24125890"]
[BlackFideId "91102863"]
[WhiteElo "3057"]
[BlackElo "2546"]
[WhiteTeam "USA"]
[BlackTeam "POL"]
[WhiteClock "0:02:30"]
[BlackClock "0:00:00"]

1. Nf3 {[%clk 0:03:00]}  Nf6 {[%clk 0:02:55]} 2. c4 {[%clk 0:03:00]}  c5 {[%clk 0:02:53]} 3. Nc3 {[%clk 0:03:00]}  Nc6 {[%clk 0:02:48]} 4. d4 {[%clk 0:03:00]}  cxd4 {[%clk 0:02:45]} 5. Nxd4 {[%clk 0:03:01]}  g6 {[%clk 0:02:43]} 6. g3 {[%clk 0:03:00]}  Bg7 {[%clk 0:02:41]} 7. Bg2 {[%clk 0:03:00]}  O-O {[%clk 0:02:40]} 8. O-O {[%clk 0:03:00]}  d6 {[%clk 0:02:39]} 9. Nxc6 {[%clk 0:03:00]}  bxc6 {[%clk 0:02:40]} 10. Bg5 {[%clk 0:03:00]}  Rb8 {[%clk 0:02:37]} 11. Qd2 {[%clk 0:03:00]}  Qb6 {[%clk 0:02:33]} 12. b3 {[%clk 0:02:59]}  Be6 {[%clk 0:02:31]} 13. Rac1 {[%clk 0:02:56]}  Rfd8 {[%clk 0:02:31]} 14. h3 {[%clk 0:02:54]}  d5 {[%clk 0:02:07]} 15. cxd5 {[%clk 0:02:50]}  cxd5 {[%clk 0:01:55]} 16. Na4 {[%clk 0:02:50]}  Qd6 {[%clk 0:00:31]} 17. Bf4 {[%clk 0:02:44]}  Qb4 {[%clk 0:00:29]} 18. Rfd1 {[%clk 0:02:35]}  Qxd2 {[%clk 0:00:27]} 19. Rxd2 {[%clk 0:02:36]}  Rbc8 {[%clk 0:00:25]} 20. Rdc2 {[%clk 0:02:36]}  Bf5 {[%clk 0:00:19]} 21. Rc7 {[%clk 0:02:33]}  Ne8 {[%clk 0:00:16]} 22. Rxc8 {[%clk 0:02:33]}  Rxc8 {[%clk 0:00:16]} 23. Rxc8 {[%clk 0:02:34]}  Bxc8 {[%clk 0:00:15]} 24. Bxd5 {[%clk 0:02:33]}  e6 {[%clk 0:00:15]} 25. Bc6 {[%clk 0:02:33]}  Nf6 {[%clk 0:00:00]} 26. Be3 {[%clk 0:02:30]} 1-0

[Event "January 9 Late 2024"]
[Site "https://www.chess.com"]
[Date "2024.01.09"]
[Round "1"]
[White "Palencia Morales, Wilson Guillermo"]
[Black "Keymer, Vincent"]
[Result "0-1"]
[Board "15"]
[TimeControl "180+1"]
[WhiteFideId "4401859"]
[BlackFideId "12940690"]
[WhiteElo "2544"]
[BlackElo "3057"]
[WhiteTeam "COL"]
[BlackTeam "GER"]
[WhiteClock "0:00:00"]
[BlackClock "0:00:54"]

1. d4 {[%clk 0:03:00]}  Nf6 {[%clk 0:02:59]} 2. Nf3 {[%clk 0:02:54]}  e6 {[%clk 0:02:58]} 3. c4 {[%clk 0:02:53]}  b6 {[%clk 0:02:59]} 4. g3 {[%clk 0:02:44]}  Ba6 {[%clk 0:02:58]} 5. Qc2 {[%clk 0:02:43]}  Bb7 {[%clk 0:02:57]} 6. Bg2 {[%clk 0:02:44]}  Bb4+ {[%clk 0:02:58]} 7. Nbd2 {[%clk 0:02:41]}  O-O {[%clk 0:02:51]} 8. O-O {[%clk 0:02:39]}  a5 {[%clk 0:02:47]} 9. e4 {[%clk 0:02:37]}  Bxd2 {[%clk 0:02:34]} 10. Nxd2 {[%clk 0:02:36]}  d6 {[%clk 0:02:35]} 11. e5 {[%clk 0:02:28]}  Bxg2 {[%clk 0:02:32]} 12. Kxg2 {[%clk 0:02:29]}  Nfd7 {[%clk 0:02:12]} 13. Nf3 {[%clk 0:02:26]}  Nc6 {[%clk 0:02:08]} 14. Bg5 {[%clk 0:02:05]}  Qc8 {[%clk 0:02:05]} 15. Rfe1 {[%clk 0:01:57]}  Qb7 {[%clk 0:01:58]} 16. Qe4 {[%clk 0:01:55]}  dxe5 {[%clk 0:01:52]} 17. dxe5 {[%clk 0:01:47]}  h6 {[%clk 0:01:52]} 18. Be3 {[%clk 0:01:22]}  Rab8 {[%clk 0:01:52]} 19. Bd2 {[%clk 0:01:08]}  Rfd8 {[%clk 0:01:46]} 20. Bc3 {[%clk 0:01:03]}  Nc5 {[%clk 0:01:42]} 21. Qe3 {[%clk 0:00:53]}  Rd3 {[%clk 0:01:40]} 22. Qe2 {[%clk 0:00:53]}  Rbd8 {[%clk 0:01:40]} 23. Kg1 {[%clk 0:00:52]}  Qa6 {[%clk 0:01:32]} 24. Nd2 {[%clk 0:00:29]}  Nd4 {[%clk 0:01:14]} 25. Bxd4 {[%clk 0:00:24]}  R3xd4 {[%clk 0:01:12]} 26. Red1 {[%clk 0:00:18]}  a4 {[%clk 0:01:02]} 27. Rac1 {[%clk 0:00:17]}  Nd3 {[%clk 0:00:57]} 28. Rc2 {[%clk 0:00:14]}  Nb4 {[%clk 0:00:57]} 29. Rc3 {[%clk 0:00:12]}  Nxa2 {[%clk 0:00:57]} 30. Ra3 {[%clk 0:00:12]}  Nb4 {[%clk 0:00:56]} 31. b3 {[%clk 0:00:10]}  c5 {[%clk 0:00:53]} 32. Rxa4 {[%clk 0:00:10]}  Qb7 {[%clk 0:00:53]} 33. Raa1 {[%clk 0:00:00]}  Qd7 {[%clk 0:00:54]} 0-1

[Event "January 9 Late 2024"]
[Site "https://www.chess.com"]
[Date "2024.01.09"]
[Round "1"]
[White "Grischuk, Alexander"]
[Black "Skuhala, Jernej"]
[Result "1-0"]
[Board "16"]
[TimeControl "180+1"]
[WhiteFideId "4126025"]
[BlackFideId "14605651"]
[WhiteElo "3053"]
[BlackElo "2542"]
[WhiteTeam "RUS"]
[BlackTeam "SLO"]
[WhiteClock "0:00:06"]
[BlackClock "0:00:08"]

1. d4 {[%clk 0:02:59]}  Nf6 {[%clk 0:02:57]} 2. c4 {[%clk 0:02:58]}  e6 {[%clk 0:02:58]} 3. Bg5 {[%clk 0:02:58]}  d5 {[%clk 0:02:58]} 4. e3 {[%clk 0:02:58]}  c6 {[%clk 0:02:56]} 5. Nc3 {[%clk 0:02:57]}  Bb4 {[%clk 0:02:56]} 6. Qc2 {[%clk 0:02:48]}  Nbd7 {[%clk 0:02:51]} 7. cxd5 {[%clk 0:02:34]}  exd5 {[%clk 0:02:48]} 8. Bd3 {[%clk 0:02:34]}  h6 {[%clk 0:02:48]} 9. Bh4 {[%clk 0:02:32]}  Be7 {[%clk 0:02:47]} 10. Nf3 {[%clk 0:02:29]}  Nh5 {[%clk 0:02:47]} 11. Bxe7 {[%clk 0:02:28]}  Qxe7 {[%clk 0:02:48]} 12. O-O {[%clk 0:02:28]}  O-O {[%clk 0:02:48]} 13. Rab1 {[%clk 0:02:27]}  a5 {[%clk 0:02:46]} 14. h3 {[%clk 0:02:26]}  Re8 {[%clk 0:02:42]} 15. Rfe1 {[%clk 0:02:26]}  Nhf6 {[%clk 0:02:40]} 16. Nd2 {[%clk 0:02:22]}  Qf8 {[%clk 0:02:37]} 17. a3 {[%clk 0:02:21]}  Nb6 {[%clk 0:02:33]} 18. Qb3 {[%clk 0:02:11]}  Nbd7 {[%clk 0:02:28]} 19. Rbc1 {[%clk 0:02:05]}  Qd6 {[%clk 0:02:20]} 20. Qc2 {[%clk 0:02:03]}  Nf8 {[%clk 0:02:15]} 21. Nf3 {[%clk 0:02:01]}  Be6 {[%clk 0:01:58]} 22. Ne5 {[%clk 0:02:01]}  N6d7 {[%clk 0:01:58]} 23. f4 {[%clk 0:01:58]}  Nxe5 {[%clk 0:01:57]} 24. dxe5 {[%clk 0:01:38]}  Qe7 {[%clk 0:01:54]} 25. Qf2 {[%clk 0:01:29]}  Bd7 {[%clk 0:01:53]} 26. e4 {[%clk 0:01:29]}  dxe4 {[%clk 0:01:46]} 27. Nxe4 {[%clk 0:01:29]}  Red8 {[%clk 0:01:43]} 28. Nd6 {[%clk 0:01:21]}  Be8 {[%clk 0:01:15]} 29. Rcd1 {[%clk 0:01:18]}  b5 {[%clk 0:00:55]} 30. Kh1 {[%clk 0:01:10]}  Ng6 {[%clk 0:00:35]} 31. Be4 {[%clk 0:01:01]}  Rab8 {[%clk 0:00:21]} 32. Qg3 {[%clk 0:00:57]}  Qh4 {[%clk 0:00:20]} 33. Qxh4 {[%clk 0:00:56]}  Nxh4 {[%clk 0:00:21]} 34. g3 {[%clk 0:00:50]}  Ng6 {[%clk 0:00:20]} 35. Nxe8 {[%clk 0:00:48]}  Rxe8 {[%clk 0:00:19]} 36. Bxc6 {[%clk 0:00:48]}  Rec8 {[%clk 0:00:20]} 37. Rc1 {[%clk 0:00:42]}  Nf8 {[%clk 0:00:19]} 38. Bd5 {[%clk 0:00:40]}  Rd8 {[%clk 0:00:19]} 39. Red1 {[%clk 0:00:38]}  Rd7 {[%clk 0:00:18]} 40. Bc6 {[%clk 0:00:30]}  Rc7 {[%clk 0:00:17]} 41. Be4 {[%clk 0:00:21]}  Rxc1 {[%clk 0:00:15]} 42. Rxc1 {[%clk 0:00:22]}  a4 {[%clk 0:00:16]} 43. Rc7 {[%clk 0:00:13]}  Ne6 {[%clk 0:00:16]} 44. Rb7 {[%clk 0:00:12]}  Rxb7 {[%clk 0:00:16]} 45. Bxb7 {[%clk 0:00:12]}  Kf8 {[%clk 0:00:15]} 46. Kg2 {[%clk 0:00:11]}  Ke7 {[%clk 0:00:16]} 47. Kf3 {[%clk 0:00:10]}  Kd7 {[%clk 0:00:16]} 48. Bd5 {[%clk 0:00:08]}  Nd8 {[%clk 0:00:16]} 49. Ke4 {[%clk 0:00:08]}  g6 {[%clk 0:00:15]} 50. Kd4 {[%clk 0:00:07]}  Nc6+ {[%clk 0:00:07]} 51. Bxc6+ {[%clk 0:00:07]}  Kxc6 {[%clk 0:00:08]} 52. g4 {[%clk 0:00:07]}  b4 {[%clk 0:00:05]} 53. axb4 {[%clk 0:00:07]}  Kb5 {[%clk 0:00:06]} 54. Kc3 {[%clk 0:00:07]}  h5 {[%clk 0:00:05]} 55. gxh5 {[%clk 0:00:06]}  gxh5 {[%clk 0:00:06]} 56. h4 {[%clk 0:00:05]}  Kb6 {[%clk 0:00:06]} 57. Kc4 {[%clk 0:00:05]}  Kc6 {[%clk 0:00:07]} 58. b5+ {[%clk 0:00:05]}  Kd7 {[%clk 0:00:07]} 59. f5 {[%clk 0:00:06]}  Kc7 {[%clk 0:00:07]} 60. Kc5 {[%clk 0:00:06]}  Kd7 {[%clk 0:00:08]} 61. b6 {[%clk 0:00:06]}  Kc8 {[%clk 0:00:08]} 62. Kc6 {[%clk 0:00:06]}  a3 {[%clk 0:00:07]} 63. bxa3 {[%clk 0:00:07]}  f6 {[%clk 0:00:07]} 64. exf6 {[%clk 0:00:06]}  Kb8 {[%clk 0:00:08]} 65. f7 {[%clk 0:00:06]} 1-0

[Event "January 9 Late 2024"]
[Site "https://www.chess.com"]
[Date "2024.01.09"]
[Round "1"]
[White "Soderstrom, Adrian"]
[Black "Iturrizaga Bonelli, Eduardo"]
[Result "0-1"]
[Board "19"]
[TimeControl "180+1"]
[WhiteFideId "1745786"]
[BlackFideId "3901211"]
[WhiteElo "2535"]
[BlackElo "3039"]
[WhiteTeam "SWE"]
[BlackTeam "ESP"]
[WhiteClock "0:00:21"]
[BlackClock "0:00:06"]

1. e4 {[%clk 0:02:58]}  c5 {[%clk 0:03:00]} 2. Nf3 {[%clk 0:02:58]}  e6 {[%clk 0:03:00]} 3. d4 {[%clk 0:02:58]}  cxd4 {[%clk 0:03:00]} 4. Nxd4 {[%clk 0:02:59]}  a6 {[%clk 0:03:01]} 5. Bd3 {[%clk 0:02:58]}  Bc5 {[%clk 0:03:00]} 6. Nb3 {[%clk 0:02:59]}  Ba7 {[%clk 0:03:01]} 7. O-O {[%clk 0:02:59]}  Nc6 {[%clk 0:03:00]} 8. Qe2 {[%clk 0:02:52]}  Nf6 {[%clk 0:02:57]} 9. Be3 {[%clk 0:02:51]}  d6 {[%clk 0:02:56]} 10. Bxa7 {[%clk 0:02:50]}  Rxa7 {[%clk 0:02:57]} 11. Nc3 {[%clk 0:02:50]}  O-O {[%clk 0:02:56]} 12. Rad1 {[%clk 0:02:50]}  b5 {[%clk 0:02:52]} 13. Qe3 {[%clk 0:02:37]}  Rd7 {[%clk 0:02:46]} 14. a4 {[%clk 0:02:34]}  b4 {[%clk 0:02:44]} 15. Ne2 {[%clk 0:02:34]}  Bb7 {[%clk 0:02:42]} 16. Ned4 {[%clk 0:02:21]}  Qc7 {[%clk 0:02:34]} 17. Nxc6 {[%clk 0:02:18]}  Qxc6 {[%clk 0:02:35]} 18. Na5 {[%clk 0:02:09]}  Qc7 {[%clk 0:02:29]} 19. Nxb7 {[%clk 0:02:08]}  Qxb7 {[%clk 0:02:30]} 20. Qe2 {[%clk 0:02:05]}  a5 {[%clk 0:02:21]} 21. Bb5 {[%clk 0:02:00]}  Rc7 {[%clk 0:02:21]} 22. Rxd6 {[%clk 0:01:53]}  Qxe4 {[%clk 0:02:08]} 23. Qxe4 {[%clk 0:01:52]}  Nxe4 {[%clk 0:02:09]} 24. Rc6 {[%clk 0:01:53]}  Rfc8 {[%clk 0:01:54]} 25. Rd1 {[%clk 0:01:52]}  g6 {[%clk 0:01:47]} 26. Rxc7 {[%clk 0:01:47]}  Rxc7 {[%clk 0:01:48]} 27. Bd3 {[%clk 0:01:47]}  Nc5 {[%clk 0:01:46]} 28. Bb5 {[%clk 0:01:45]}  Ne4 {[%clk 0:01:43]} 29. Bd3 {[%clk 0:01:45]}  Nf6 {[%clk 0:01:39]} 30. f3 {[%clk 0:01:41]}  Kf8 {[%clk 0:01:38]} 31. Kf2 {[%clk 0:01:41]}  Ke7 {[%clk 0:01:35]} 32. Rd2 {[%clk 0:01:41]}  Nd5 {[%clk 0:01:30]} 33. Be4 {[%clk 0:01:35]}  Nb6 {[%clk 0:01:29]} 34. b3 {[%clk 0:01:34]}  f5 {[%clk 0:01:29]} 35. Bd3 {[%clk 0:01:34]}  e5 {[%clk 0:01:21]} 36. g4 {[%clk 0:01:33]}  Ke6 {[%clk 0:01:17]} 37. gxf5+ {[%clk 0:01:29]}  gxf5 {[%clk 0:01:18]} 38. Bb5 {[%clk 0:01:27]}  Rc3 {[%clk 0:01:11]} 39. Bd3 {[%clk 0:01:26]}  Kf6 {[%clk 0:01:07]} 40. Bb5 {[%clk 0:01:26]}  Kg5 {[%clk 0:01:07]} 41. Kg3 {[%clk 0:01:22]}  f4+ {[%clk 0:00:31]} 42. Kg2 {[%clk 0:01:22]}  h5 {[%clk 0:00:25]} 43. Kf2 {[%clk 0:01:19]}  Kh4 {[%clk 0:00:20]} 44. Kg2 {[%clk 0:01:13]}  Rc5 {[%clk 0:00:19]} 45. Bd3 {[%clk 0:01:13]}  Nd5 {[%clk 0:00:19]} 46. Be4 {[%clk 0:01:13]}  Ne3+ {[%clk 0:00:17]} 47. Kf2 {[%clk 0:01:12]}  Kh3 {[%clk 0:00:17]} 48. Kg1 {[%clk 0:01:11]}  Rc8 {[%clk 0:00:17]} 49. Rd6 {[%clk 0:01:07]}  Rg8+ {[%clk 0:00:14]} 50. Rg6 {[%clk 0:01:01]}  Rd8 {[%clk 0:00:09]} 51. Bd3 {[%clk 0:00:59]}  Kh4 {[%clk 0:00:07]} 52. Re6 {[%clk 0:00:58]}  Rd5 {[%clk 0:00:07]} 53. Kf2 {[%clk 0:00:56]}  Rc5 {[%clk 0:00:07]} 54. Rh6 {[%clk 0:00:50]}  Nxc2 {[%clk 0:00:07]} 55. Bg6 {[%clk 0:00:50]}  Kg5 {[%clk 0:00:07]} 56. Rxh5+ {[%clk 0:00:31]}  Kxg6 {[%clk 0:00:07]} 57. Rh8 {[%clk 0:00:31]}  Nd4 {[%clk 0:00:07]} 58. h4 {[%clk 0:00:28]}  Rc2+ {[%clk 0:00:06]} 59. Kf1 {[%clk 0:00:27]}  Nxf3 {[%clk 0:00:07]} 60. h5+ {[%clk 0:00:27]}  Kg7 {[%clk 0:00:07]} 61. Ra8 {[%clk 0:00:26]}  Nh2+ {[%clk 0:00:06]} 62. Kg1 {[%clk 0:00:26]}  Ng4 {[%clk 0:00:07]} 63. Rxa5 {[%clk 0:00:26]}  f3 {[%clk 0:00:07]} 64. Rc5 {[%clk 0:00:21]}  Rxc5 {[%clk 0:00:06]} 0-1

[Event "January 9 Late 2024"]
[Site "https://www.chess.com"]
[Date "2024.01.09"]
[Round "1"]
[White "Caruana, Fabiano"]
[Black "De Boer, Eelke"]
[Result "0-1"]
[Board "22"]
[TimeControl "180+1"]
[WhiteFideId "2020009"]
[BlackFideId "1048120"]
[WhiteElo "3028"]
[BlackElo "2532"]
[WhiteTeam "USA"]
[BlackTeam "NED"]
[WhiteClock "0:00:15"]
[BlackClock "0:00:33"]

1. d4 {[%clk 0:03:00]}  Nf6 {[%clk 0:03:00]} 2. Nf3 {[%clk 0:03:00]}  d5 {[%clk 0:02:59]} 3. Bg5 {[%clk 0:02:59]}  c5 {[%clk 0:02:58]} 4. Bxf6 {[%clk 0:02:58]}  gxf6 {[%clk 0:02:58]} 5. e3 {[%clk 0:02:58]}  Nc6 {[%clk 0:02:58]} 6. dxc5 {[%clk 0:02:57]}  e6 {[%clk 0:02:56]} 7. c4 {[%clk 0:02:56]}  dxc4 {[%clk 0:02:52]} 8. Qxd8+ {[%clk 0:02:54]}  Kxd8 {[%clk 0:02:49]} 9. Bxc4 {[%clk 0:02:51]}  Bxc5 {[%clk 0:02:50]} 10. Nbd2 {[%clk 0:02:50]}  Ke7 {[%clk 0:02:49]} 11. a3 {[%clk 0:02:49]}  a5 {[%clk 0:02:44]} 12. Rc1 {[%clk 0:02:42]}  Bd6 {[%clk 0:02:37]} 13. Ne4 {[%clk 0:02:42]}  Rd8 {[%clk 0:02:22]} 14. Ke2 {[%clk 0:02:32]}  f5 {[%clk 0:02:17]} 15. Nxd6 {[%clk 0:02:31]}  Rxd6 {[%clk 0:02:18]} 16. h3 {[%clk 0:02:28]}  b6 {[%clk 0:02:14]} 17. g4 {[%clk 0:02:25]}  Bb7 {[%clk 0:01:30]} 18. gxf5 {[%clk 0:02:24]}  exf5 {[%clk 0:01:31]} 19. Rhg1 {[%clk 0:02:24]}  Kf6 {[%clk 0:01:27]} 20. Ng5 {[%clk 0:02:17]}  Ne5 {[%clk 0:01:23]} 21. Bb5 {[%clk 0:02:09]}  h6 {[%clk 0:01:20]} 22. f4 {[%clk 0:01:09]}  hxg5 {[%clk 0:01:09]} 23. fxe5+ {[%clk 0:01:09]}  Kxe5 {[%clk 0:01:10]} 24. Rc7 {[%clk 0:00:44]}  Be4 {[%clk 0:00:46]} 25. Rd1 {[%clk 0:00:27]}  Bf3+ {[%clk 0:00:43]} 26. Kxf3 {[%clk 0:00:28]}  Rxd1 {[%clk 0:00:43]} 27. Rxf7 {[%clk 0:00:28]}  Rh8 {[%clk 0:00:41]} 28. Kg3 {[%clk 0:00:25]}  Rh1 {[%clk 0:00:40]} 29. Bd7 {[%clk 0:00:21]}  R1xh3+ {[%clk 0:00:40]} 30. Kg2 {[%clk 0:00:21]}  Rh2+ {[%clk 0:00:38]} 31. Kg1 {[%clk 0:00:21]}  f4 {[%clk 0:00:34]} 32. exf4+ {[%clk 0:00:18]}  gxf4 {[%clk 0:00:35]} 33. Rf5+ {[%clk 0:00:18]}  Ke4 {[%clk 0:00:35]} 34. Rf6 {[%clk 0:00:15]}  Rh1+ {[%clk 0:00:33]} 0-1

[Event "January 9 Late 2024"]
[Site "https://www.chess.com"]
[Date "2024.01.09"]
[Round "1"]
[White "Senft, Sean"]
[Black "Van Foreest, Jorden"]
[Result "0-1"]
[Board "25"]
[TimeControl "180+1"]
[WhiteFideId "2044960"]
[BlackFideId "1039784"]
[WhiteElo "2528"]
[BlackElo "3020"]
[WhiteTeam "USA"]
[BlackTeam "NED"]
[WhiteClock "0:00:00"]
[BlackClock "0:01:33"]

1. d4 {[%clk 0:03:00]}  Nf6 {[%clk 0:02:59]} 2. c4 {[%clk 0:03:00]}  e6 {[%clk 0:02:56]} 3. Nc3 {[%clk 0:03:01]}  Bb4 {[%clk 0:02:55]} 4. Nf3 {[%clk 0:03:01]}  Bxc3+ {[%clk 0:02:55]} 5. bxc3 {[%clk 0:03:00]}  b6 {[%clk 0:02:53]} 6. Bg5 {[%clk 0:03:00]}  Bb7 {[%clk 0:02:51]} 7. e3 {[%clk 0:02:59]}  h6 {[%clk 0:02:50]} 8. Bh4 {[%clk 0:02:59]}  d6 {[%clk 0:02:49]} 9. Bd3 {[%clk 0:02:59]}  Nbd7 {[%clk 0:02:43]} 10. O-O {[%clk 0:02:58]}  g5 {[%clk 0:02:39]} 11. Bg3 {[%clk 0:02:58]}  Ne4 {[%clk 0:02:39]} 12. Qc2 {[%clk 0:02:53]}  f5 {[%clk 0:02:39]} 13. Nd2 {[%clk 0:02:54]}  Ndf6 {[%clk 0:02:32]} 14. f3 {[%clk 0:02:50]}  Nxg3 {[%clk 0:02:32]} 15. hxg3 {[%clk 0:02:51]}  O-O {[%clk 0:02:27]} 16. e4 {[%clk 0:02:46]}  Nh5 {[%clk 0:02:21]} 17. exf5 {[%clk 0:02:23]}  exf5 {[%clk 0:02:22]} 18. Bxf5 {[%clk 0:02:13]}  Nxg3 {[%clk 0:02:20]} 19. Bh7+ {[%clk 0:02:14]}  Kh8 {[%clk 0:02:20]} 20. Rfe1 {[%clk 0:02:14]}  g4 {[%clk 0:02:12]} 21. Be4 {[%clk 0:00:18]}  gxf3 {[%clk 0:02:09]} 22. Nxf3 {[%clk 0:00:15]}  Nxe4 {[%clk 0:02:03]} 23. Rxe4 {[%clk 0:00:16]}  Bxe4 {[%clk 0:02:01]} 24. Qxe4 {[%clk 0:00:17]}  Qf6 {[%clk 0:02:00]} 25. Qg4 {[%clk 0:00:12]}  Rg8 {[%clk 0:02:00]} 26. Qh3 {[%clk 0:00:13]}  Raf8 {[%clk 0:01:54]} 27. Re1 {[%clk 0:00:13]}  Rg6 {[%clk 0:01:51]} 28. Re3 {[%clk 0:00:08]}  Qf4 {[%clk 0:01:51]} 29. Re6 {[%clk 0:00:07]}  Rxe6 {[%clk 0:01:44]} 30. Qxe6 {[%clk 0:00:08]}  Kg7 {[%clk 0:01:39]} 31. Qe7+ {[%clk 0:00:05]}  Rf7 {[%clk 0:01:39]} 32. Qd8 {[%clk 0:00:04]}  Qf6 {[%clk 0:01:34]} 33. Qe8 {[%clk 0:00:04]}  Re7 {[%clk 0:01:33]} 34. Qc8 {[%clk 0:00:00]}  Qf4 {[%clk 0:01:33]} 0-1